[Event "Titled Tuesday Blitz March 08 Early 2022"]
[White "Moroni, Luca Jr"]
[Black "Dronavalli, Harika"]
[WhiteFideId "865834"]
[BlackFideId "5015197"]
[WhiteElo "2573"]
[BlackElo "2382"]
[Result "1-0"]
[Round "03"]
[TimeControl "180+1"]
[Date "2022.03.08"]
[WhiteClock "0:00:12"]
[BlackClock "0:00:17"]

1. d4 {[%clk 0:03:00]}  Nf6 {[%clk 0:02:59]} 2. Bf4 {[%clk 0:03:01]}  d6 {[%clk 0:02:56]} 3. Nc3 {[%clk 0:02:59]}  Nbd7 {[%clk 0:02:54]} 4. Nf3 {[%clk 0:02:59]}  c5 {[%clk 0:02:43]} 5. d5 {[%clk 0:02:54]}  g6 {[%clk 0:02:22]} 6. e4 {[%clk 0:02:53]}  Bg7 {[%clk 0:02:21]} 7. Qd2 {[%clk 0:02:53]}  a6 {[%clk 0:02:18]} 8. a4 {[%clk 0:02:50]}  Ng4 {[%clk 0:02:14]} 9. Be2 {[%clk 0:02:46]}  O-O {[%clk 0:02:03]} 10. O-O {[%clk 0:02:41]}  Rb8 {[%clk 0:01:59]} 11. Bg5 {[%clk 0:02:25]}  h6 {[%clk 0:01:49]} 12. Bh4 {[%clk 0:02:25]}  Ngf6 {[%clk 0:01:46]} 13. h3 {[%clk 0:02:15]}  b5 {[%clk 0:01:43]} 14. axb5 {[%clk 0:02:15]}  axb5 {[%clk 0:01:43]} 15. Bxb5 {[%clk 0:02:15]}  g5 {[%clk 0:01:29]} 16. Bg3 {[%clk 0:02:07]}  Nxe4 {[%clk 0:01:29]} 17. Nxe4 {[%clk 0:02:08]}  Rxb5 {[%clk 0:01:29]} 18. c3 {[%clk 0:02:05]}  Qb6 {[%clk 0:01:24]} 19. Ra2 {[%clk 0:02:03]}  Nf6 {[%clk 0:01:20]} 20. Nxf6+ {[%clk 0:01:59]}  exf6 {[%clk 0:01:17]} 21. h4 {[%clk 0:01:53]}  Bf5 {[%clk 0:01:11]} 22. Re1 {[%clk 0:01:35]}  Rb8 {[%clk 0:01:04]} 23. Re2 {[%clk 0:01:28]}  Bg4 {[%clk 0:01:01]} 24. Qd3 {[%clk 0:01:24]}  Bf8 {[%clk 0:00:53]} 25. hxg5 {[%clk 0:01:20]}  fxg5 {[%clk 0:00:50]} 26. Qe4 {[%clk 0:01:17]}  Bh5 {[%clk 0:00:46]} 27. Qf5 {[%clk 0:00:56]}  Qb7 {[%clk 0:00:42]} 28. Qe4 {[%clk 0:00:29]}  Qd7 {[%clk 0:00:35]} 29. Kh2 {[%clk 0:00:27]}  R5b7 {[%clk 0:00:33]} 30. Ra6 {[%clk 0:00:21]}  Bg6 {[%clk 0:00:31]} 31. Qc4 {[%clk 0:00:20]}  Rb6 {[%clk 0:00:30]} 32. Rxb6 {[%clk 0:00:20]}  Rxb6 {[%clk 0:00:30]} 33. b4 {[%clk 0:00:20]}  cxb4 {[%clk 0:00:30]} 34. cxb4 {[%clk 0:00:21]}  Rb8 {[%clk 0:00:28]} 35. Rb2 {[%clk 0:00:20]}  Rc8 {[%clk 0:00:22]} 36. Qe2 {[%clk 0:00:19]}  Bh5 {[%clk 0:00:21]} 37. b5 {[%clk 0:00:19]}  Bg7 {[%clk 0:00:20]} 38. Rb3 {[%clk 0:00:19]}  Re8 {[%clk 0:00:20]} 39. Qd3 {[%clk 0:00:19]}  Bg6 {[%clk 0:00:20]} 40. Qd2 {[%clk 0:00:17]}  Qg4 {[%clk 0:00:20]} 41. b6 {[%clk 0:00:16]}  h5 {[%clk 0:00:18]} 42. b7 {[%clk 0:00:15]}  h4 {[%clk 0:00:19]} 43. Bxd6 {[%clk 0:00:12]}  h3 {[%clk 0:00:17]} 44. gxh3 {[%clk 0:00:12]}  Qxf3 {[%clk 0:00:17]} 45. Rxf3 {[%clk 0:00:12]} 1-0


[Site "https://www.chess.com"]

[Event "Titled Tuesday Blitz March 08 Early 2022"]
[White "Moskvin, Anatoly"]
[Black "Madmaxfury1995"]
[WhiteFideId "24199990"]
[WhiteElo "2079"]
[BlackElo "2582"]
[Result "0-1"]
[Round "03"]
[TimeControl "180+1"]
[Date "2022.03.09"]
[WhiteClock "0:00:01"]
[BlackClock "0:00:23"]

1. e4 {[%clk 0:03:00]}  d5 {[%clk 0:02:58]} 2. exd5 {[%clk 0:03:00]}  Qxd5 {[%clk 0:02:59]} 3. Nf3 {[%clk 0:03:00]}  Bg4 {[%clk 0:02:58]} 4. Be2 {[%clk 0:02:56]}  Nc6 {[%clk 0:02:59]} 5. c4 {[%clk 0:02:55]}  Qd7 {[%clk 0:02:58]} 6. d4 {[%clk 0:02:52]}  Bxf3 {[%clk 0:02:49]} 7. Bxf3 {[%clk 0:02:50]}  Nxd4 {[%clk 0:02:50]} 8. Bxb7 {[%clk 0:02:47]}  Rb8 {[%clk 0:02:49]} 9. Be4 {[%clk 0:02:36]}  Nf6 {[%clk 0:02:46]} 10. Bd3 {[%clk 0:02:32]}  e6 {[%clk 0:02:33]} 11. O-O {[%clk 0:02:31]}  Be7 {[%clk 0:02:34]} 12. Be3 {[%clk 0:02:30]}  c5 {[%clk 0:02:32]} 13. b3 {[%clk 0:02:26]}  O-O {[%clk 0:02:31]} 14. Nc3 {[%clk 0:02:24]}  Rfd8 {[%clk 0:02:30]} 15. Ne4 {[%clk 0:01:32]}  Qc6 {[%clk 0:02:17]} 16. Qb1 {[%clk 0:01:12]}  h6 {[%clk 0:01:54]} 17. Rd1 {[%clk 0:01:08]}  Ng4 {[%clk 0:01:52]} 18. h3 {[%clk 0:00:50]}  Nxe3 {[%clk 0:01:51]} 19. fxe3 {[%clk 0:00:51]}  Nf5 {[%clk 0:01:52]} 20. Re1 {[%clk 0:00:30]}  Qc7 {[%clk 0:01:32]} 21. Qd1 {[%clk 0:00:24]}  Qe5 {[%clk 0:01:10]} 22. Qe2 {[%clk 0:00:12]}  Rd7 {[%clk 0:01:00]} 23. Bc2 {[%clk 0:00:12]}  Rbd8 {[%clk 0:00:59]} 24. Rad1 {[%clk 0:00:11]}  Bh4 {[%clk 0:00:53]} 25. Rxd7 {[%clk 0:00:06]}  Rxd7 {[%clk 0:00:52]} 26. Rb1 {[%clk 0:00:06]}  Bd8 {[%clk 0:00:49]} 27. Qf3 {[%clk 0:00:04]}  Bc7 {[%clk 0:00:49]} 28. Kf2 {[%clk 0:00:03]}  Ne7 {[%clk 0:00:29]} 29. Rd1 {[%clk 0:00:02]}  Rxd1 {[%clk 0:00:27]} 30. Qxd1 {[%clk 0:00:02]}  f5 {[%clk 0:00:26]} 31. Nd2 {[%clk 0:00:01]}  Qg3+ {[%clk 0:00:25]} 32. Kf1 {[%clk 0:00:01]}  Qxe3 {[%clk 0:00:24]} 33. Qf3 {[%clk 0:00:01]}  Qxd2 {[%clk 0:00:23]} 0-1


[Site "https://www.chess.com"]

[Event "Titled Tuesday Blitz March 08 Early 2022"]
[White "Nguyen, Thien Ngan"]
[Black "Mkrtchyan, Mariam"]
[WhiteFideId "12414816"]
[BlackFideId "13310828"]
[WhiteElo "1917"]
[BlackElo "1984"]
[Result "1/2-1/2"]
[Round "03"]
[TimeControl "180+1"]
[Date "2022.03.09"]
[WhiteClock "0:00:09"]
[BlackClock "0:00:10"]

1. e4 {[%clk 0:03:00]}  c6 {[%clk 0:02:59]} 2. Nc3 {[%clk 0:03:00]}  d5 {[%clk 0:02:59]} 3. d4 {[%clk 0:03:00]}  dxe4 {[%clk 0:02:59]} 4. Nxe4 {[%clk 0:03:01]}  Nf6 {[%clk 0:03:00]} 5. Nxf6+ {[%clk 0:03:00]}  exf6 {[%clk 0:02:59]} 6. Nf3 {[%clk 0:03:00]}  Bd6 {[%clk 0:03:00]} 7. Be3 {[%clk 0:02:58]}  O-O {[%clk 0:03:00]} 8. Qd2 {[%clk 0:02:56]}  Re8 {[%clk 0:03:00]} 9. O-O-O {[%clk 0:02:56]}  Nd7 {[%clk 0:03:01]} 10. Kb1 {[%clk 0:02:53]}  a5 {[%clk 0:03:01]} 11. Bd3 {[%clk 0:02:53]}  a4 {[%clk 0:03:01]} 12. h4 {[%clk 0:02:49]}  Nf8 {[%clk 0:02:57]} 13. h5 {[%clk 0:02:48]}  h6 {[%clk 0:02:35]} 14. Nh4 {[%clk 0:02:29]}  b5 {[%clk 0:02:21]} 15. g4 {[%clk 0:02:22]}  b4 {[%clk 0:02:17]} 16. Rdg1 {[%clk 0:02:18]}  b3 {[%clk 0:02:15]} 17. Bxh6 {[%clk 0:02:07]}  bxa2+ {[%clk 0:02:01]} 18. Ka1 {[%clk 0:02:03]}  a3 {[%clk 0:01:54]} 19. b3 {[%clk 0:02:02]}  gxh6 {[%clk 0:01:00]} 20. Nf5 {[%clk 0:01:56]}  Ne6 {[%clk 0:00:53]} 21. Nxh6+ {[%clk 0:01:51]}  Kf8 {[%clk 0:00:52]} 22. Nf5 {[%clk 0:01:47]}  Bf4 {[%clk 0:00:51]} 23. Qb4+ {[%clk 0:01:46]}  c5 {[%clk 0:00:43]} 24. dxc5 {[%clk 0:01:44]}  Rb8 {[%clk 0:00:41]} 25. Qc4 {[%clk 0:01:28]}  Be5+ {[%clk 0:00:37]} 26. Kxa2 {[%clk 0:01:28]}  Nd4 {[%clk 0:00:29]} 27. h6 {[%clk 0:01:09]}  Bxf5 {[%clk 0:00:25]} 28. gxf5 {[%clk 0:01:07]}  Ke7 {[%clk 0:00:23]} 29. h7 {[%clk 0:01:03]}  Rh8 {[%clk 0:00:19]} 30. Rg7 {[%clk 0:01:00]}  Qf8 {[%clk 0:00:17]} 31. Rhg1 {[%clk 0:01:00]}  Nc6 {[%clk 0:00:15]} 32. Rg8 {[%clk 0:00:44]}  Qh6 {[%clk 0:00:13]} 33. R1g7 {[%clk 0:00:39]}  Rf8 {[%clk 0:00:09]} 34. f4 {[%clk 0:00:26]}  Rxh7 {[%clk 0:00:08]} 35. Rxh7 {[%clk 0:00:24]}  Qxh7 {[%clk 0:00:07]} 36. Rxf8 {[%clk 0:00:24]}  Kxf8 {[%clk 0:00:08]} 37. fxe5 {[%clk 0:00:25]}  Nxe5 {[%clk 0:00:09]} 38. Qd5 {[%clk 0:00:25]}  Qh2 {[%clk 0:00:09]} 39. c6 {[%clk 0:00:22]}  Qd2 {[%clk 0:00:08]} 40. c7 {[%clk 0:00:21]}  Qc3 {[%clk 0:00:08]} 41. c8=Q+ {[%clk 0:00:20]}  Qxc8 {[%clk 0:00:07]} 42. Qd6+ {[%clk 0:00:20]}  Kg7 {[%clk 0:00:06]} 43. Qd4 {[%clk 0:00:16]}  Nxd3 {[%clk 0:00:06]} 44. Qxd3 {[%clk 0:00:16]}  Qc5 {[%clk 0:00:06]} 45. Qg3+ {[%clk 0:00:16]}  Kf8 {[%clk 0:00:06]} 46. Qd3 {[%clk 0:00:15]}  Kg7 {[%clk 0:00:06]} 47. Qe4 {[%clk 0:00:15]}  Kf8 {[%clk 0:00:05]} 48. Qa8+ {[%clk 0:00:15]}  Kg7 {[%clk 0:00:05]} 49. Qg2+ {[%clk 0:00:16]}  Kh6 {[%clk 0:00:05]} 50. Qe4 {[%clk 0:00:15]}  Kg5 {[%clk 0:00:05]} 51. Qd3 {[%clk 0:00:13]}  Qxf5 {[%clk 0:00:04]} 52. Qd2+ {[%clk 0:00:13]}  Qf4 {[%clk 0:00:04]} 53. Qd5+ {[%clk 0:00:13]}  Qf5 {[%clk 0:00:04]} 54. Qg2+ {[%clk 0:00:12]}  Kh6 {[%clk 0:00:04]} 55. Qh2+ {[%clk 0:00:11]}  Qh5 {[%clk 0:00:04]} 56. Qf4+ {[%clk 0:00:10]}  Qg5 {[%clk 0:00:04]} 57. Qh2+ {[%clk 0:00:10]}  Kg6 {[%clk 0:00:04]} 58. Kxa3 {[%clk 0:00:10]}  f5 {[%clk 0:00:05]} 59. b4 {[%clk 0:00:09]}  f6 {[%clk 0:00:05]} 60. b5 {[%clk 0:00:07]}  f4 {[%clk 0:00:06]} 61. Qf2 {[%clk 0:00:04]}  Qxb5 {[%clk 0:00:05]} 62. Qxf4 {[%clk 0:00:04]}  Qa5+ {[%clk 0:00:06]} 63. Kb2 {[%clk 0:00:04]}  Qb6+ {[%clk 0:00:06]} 64. Kc1 {[%clk 0:00:05]}  Qc5 {[%clk 0:00:06]} 65. Kd2 {[%clk 0:00:05]}  Kf7 {[%clk 0:00:07]} 66. Qg4 {[%clk 0:00:05]}  Qd5+ {[%clk 0:00:07]} 67. Kc1 {[%clk 0:00:06]}  Qe5 {[%clk 0:00:08]} 68. Qd7+ {[%clk 0:00:05]}  Kg6 {[%clk 0:00:08]} 69. Qd3+ {[%clk 0:00:06]}  Kg5 {[%clk 0:00:08]} 70. Qd2+ {[%clk 0:00:06]}  Kf5 {[%clk 0:00:08]} 71. Qf2+ {[%clk 0:00:06]}  Ke6 {[%clk 0:00:09]} 72. Qb6+ {[%clk 0:00:07]}  Kf5 {[%clk 0:00:08]} 73. Qf2+ {[%clk 0:00:07]}  Qf4+ {[%clk 0:00:08]} 74. Qxf4+ {[%clk 0:00:06]}  Kxf4 {[%clk 0:00:08]} 75. Kd2 {[%clk 0:00:07]}  Ke4 {[%clk 0:00:09]} 76. Ke2 {[%clk 0:00:07]}  Kd4 {[%clk 0:00:09]} 77. Kf3 {[%clk 0:00:06]}  Kc3 {[%clk 0:00:09]} 78. Kf4 {[%clk 0:00:07]}  Kxc2 {[%clk 0:00:10]} 79. Kf5 {[%clk 0:00:08]}  Kd3 {[%clk 0:00:10]} 80. Kxf6 {[%clk 0:00:09]} 1/2-1/2


[Site "https://www.chess.com"]

[Event "Titled Tuesday Blitz March 08 Early 2022"]
[White "Papasimakopoulos, Alexandros"]
[Black "Nguyen Hong Nhung"]
[WhiteFideId "4244125"]
[BlackFideId "12412201"]
[WhiteElo "2340"]
[BlackElo "1661"]
[Result "0-1"]
[Round "03"]
[TimeControl "180+1"]
[Date "2022.03.09"]
[WhiteClock "0:00:04"]
[BlackClock "0:00:10"]

1. c4 {[%clk 0:02:35]}  f5 {[%clk 0:02:58]} 2. d4 {[%clk 0:02:34]}  Nf6 {[%clk 0:02:59]} 3. h3 {[%clk 0:02:32]}  g6 {[%clk 0:02:55]} 4. g4 {[%clk 0:02:32]}  fxg4 {[%clk 0:02:55]} 5. hxg4 {[%clk 0:02:33]}  Nxg4 {[%clk 0:02:53]} 6. e4 {[%clk 0:02:32]}  d6 {[%clk 0:02:51]} 7. Bh3 {[%clk 0:02:21]}  Nf6 {[%clk 0:02:51]} 8. Nc3 {[%clk 0:02:18]}  Nc6 {[%clk 0:02:47]} 9. Be3 {[%clk 0:02:17]}  Bxh3 {[%clk 0:02:45]} 10. Nxh3 {[%clk 0:02:17]}  Qd7 {[%clk 0:02:45]} 11. Ng5 {[%clk 0:02:16]}  h6 {[%clk 0:02:40]} 12. d5 {[%clk 0:02:14]}  Nd8 {[%clk 0:02:31]} 13. f4 {[%clk 0:02:03]}  Bg7 {[%clk 0:02:29]} 14. Nf3 {[%clk 0:02:03]}  Nf7 {[%clk 0:02:22]} 15. Qd2 {[%clk 0:02:02]}  Qg4 {[%clk 0:02:21]} 16. Qf2 {[%clk 0:01:56]}  O-O-O {[%clk 0:02:15]} 17. O-O-O {[%clk 0:01:56]}  a6 {[%clk 0:02:14]} 18. Rdg1 {[%clk 0:01:56]}  Qd7 {[%clk 0:02:07]} 19. e5 {[%clk 0:01:56]}  Ng4 {[%clk 0:02:04]} 20. Qe2 {[%clk 0:01:43]}  dxe5 {[%clk 0:02:02]} 21. fxe5 {[%clk 0:01:38]}  Nfxe5 {[%clk 0:01:53]} 22. Nxe5 {[%clk 0:01:37]}  Nxe5 {[%clk 0:01:54]} 23. Bd4 {[%clk 0:01:37]}  Qf5 {[%clk 0:01:34]} 24. Rf1 {[%clk 0:01:14]}  Qg5+ {[%clk 0:01:30]} 25. Kc2 {[%clk 0:01:14]}  Rhf8 {[%clk 0:01:05]} 26. Ne4 {[%clk 0:01:00]}  Qg4 {[%clk 0:00:28]} 27. Qxg4+ {[%clk 0:00:58]}  Nxg4 {[%clk 0:00:29]} 28. Rxf8 {[%clk 0:00:55]}  Bxf8 {[%clk 0:00:27]} 29. Nc5 {[%clk 0:00:53]}  e5 {[%clk 0:00:21]} 30. Bg1 {[%clk 0:00:46]}  Bxc5 {[%clk 0:00:21]} 31. Bxc5 {[%clk 0:00:45]}  h5 {[%clk 0:00:21]} 32. Rf1 {[%clk 0:00:39]}  b6 {[%clk 0:00:21]} 33. Bg1 {[%clk 0:00:38]}  Rh8 {[%clk 0:00:18]} 34. Rf7 {[%clk 0:00:19]}  h4 {[%clk 0:00:17]} 35. Rg7 {[%clk 0:00:15]}  h3 {[%clk 0:00:16]} 36. Rxg6 {[%clk 0:00:16]}  h2 {[%clk 0:00:17]} 37. Bxh2 {[%clk 0:00:16]}  Rxh2+ {[%clk 0:00:16]} 38. Kd3 {[%clk 0:00:13]}  Nf2+ {[%clk 0:00:15]} 39. Ke3 {[%clk 0:00:11]}  Nd1+ {[%clk 0:00:15]} 40. Ke4 {[%clk 0:00:11]}  Nxb2 {[%clk 0:00:14]} 41. c5 {[%clk 0:00:11]}  bxc5 {[%clk 0:00:13]} 42. Rxa6 {[%clk 0:00:11]}  Re2+ {[%clk 0:00:11]} 43. Kf3 {[%clk 0:00:10]}  Re1 {[%clk 0:00:12]} 44. Rc6 {[%clk 0:00:10]}  Kd7 {[%clk 0:00:11]} 45. Rxc5 {[%clk 0:00:09]}  e4+ {[%clk 0:00:11]} 46. Kg2 {[%clk 0:00:07]}  Nd3 {[%clk 0:00:12]} 47. Rc3 {[%clk 0:00:05]}  Re2+ {[%clk 0:00:12]} 48. Kg3 {[%clk 0:00:05]}  Rxa2 {[%clk 0:00:13]} 49. Rc4 {[%clk 0:00:04]}  Re2 {[%clk 0:00:13]} 50. Rc6 {[%clk 0:00:03]}  Ne5 {[%clk 0:00:13]} 51. Re6 {[%clk 0:00:03]}  Nc4 {[%clk 0:00:13]} 52. Kf4 {[%clk 0:00:04]}  e3 {[%clk 0:00:14]} 53. Rh6 {[%clk 0:00:04]}  Rf2+ {[%clk 0:00:14]} 54. Kg3 {[%clk 0:00:04]}  Rd2 {[%clk 0:00:15]} 55. Rh7+ {[%clk 0:00:05]}  Kd6 {[%clk 0:00:15]} 56. Kf3 {[%clk 0:00:05]}  Rxd5 {[%clk 0:00:15]} 57. Rh4 {[%clk 0:00:04]}  Kc5 {[%clk 0:00:14]} 58. Rh7 {[%clk 0:00:04]}  c6 {[%clk 0:00:14]} 59. Ra7 {[%clk 0:00:04]}  Re5 {[%clk 0:00:13]} 60. Ke2 {[%clk 0:00:05]}  Kd4 {[%clk 0:00:13]} 61. Rd7+ {[%clk 0:00:05]}  Rd5 {[%clk 0:00:13]} 62. Rc7 {[%clk 0:00:05]}  c5 {[%clk 0:00:12]} 63. Rh7 {[%clk 0:00:05]}  Kc3 {[%clk 0:00:13]} 64. Rh1 {[%clk 0:00:05]}  Rd2+ {[%clk 0:00:13]} 65. Ke1 {[%clk 0:00:05]}  Rc2 {[%clk 0:00:13]} 66. Rh5 {[%clk 0:00:05]}  Nb2 {[%clk 0:00:10]} 67. Re5 {[%clk 0:00:03]}  Nd3+ {[%clk 0:00:10]} 68. Kd1 {[%clk 0:00:04]}  Nxe5 {[%clk 0:00:10]} 69. Ke1 {[%clk 0:00:04]}  Nf3+ {[%clk 0:00:10]} 70. Kf1 {[%clk 0:00:04]}  Rf2# {[%clk 0:00:10]} 0-1


[Site "https://www.chess.com"]

[Event "Titled Tuesday Blitz March 08 Early 2022"]
[White "Pein, Jonathan"]
[Black "Viskelis, Darius"]
[WhiteFideId "417092"]
[BlackFideId "12800830"]
[WhiteElo "2140"]
[BlackElo "1978"]
[Result "1-0"]
[Round "03"]
[TimeControl "180+1"]
[Date "2022.03.09"]
[WhiteClock "0:00:19"]
[BlackClock "0:00:28"]

1. e4 {[%clk 0:02:54]}  Nc6 {[%clk 0:02:59]} 2. d4 {[%clk 0:02:48]}  d5 {[%clk 0:02:58]} 3. exd5 {[%clk 0:02:48]}  Qxd5 {[%clk 0:02:57]} 4. Nf3 {[%clk 0:02:49]}  e5 {[%clk 0:02:57]} 5. c4 {[%clk 0:02:45]}  Qe4+ {[%clk 0:02:56]} 6. Be2 {[%clk 0:02:41]}  Nxd4 {[%clk 0:02:56]} 7. Nxd4 {[%clk 0:02:41]}  Qxd4 {[%clk 0:02:52]} 8. Nd2 {[%clk 0:02:24]}  Nf6 {[%clk 0:02:46]} 9. O-O {[%clk 0:02:24]}  Be7 {[%clk 0:02:44]} 10. Qa4+ {[%clk 0:02:23]}  Bd7 {[%clk 0:02:44]} 11. Qb3 {[%clk 0:02:24]}  Bc6 {[%clk 0:02:39]} 12. Nf3 {[%clk 0:02:25]}  Qg4 {[%clk 0:02:39]} 13. h3 {[%clk 0:02:20]}  Qg6 {[%clk 0:02:38]} 14. Re1 {[%clk 0:02:10]}  O-O {[%clk 0:02:30]} 15. Be3 {[%clk 0:02:10]}  Nh5 {[%clk 0:02:18]} 16. Rad1 {[%clk 0:01:52]}  Nf4 {[%clk 0:02:10]} 17. Bxf4 {[%clk 0:01:49]}  exf4 {[%clk 0:02:11]} 18. Bd3 {[%clk 0:01:42]}  f5 {[%clk 0:02:02]} 19. Bf1 {[%clk 0:01:12]}  Bb4 {[%clk 0:01:54]} 20. c5+ {[%clk 0:01:02]}  Kh8 {[%clk 0:01:53]} 21. Re6 {[%clk 0:01:00]}  Bxf3 {[%clk 0:01:34]} 22. Rxg6 {[%clk 0:00:50]}  Bxd1 {[%clk 0:01:34]} 23. Qxb4 {[%clk 0:00:45]}  hxg6 {[%clk 0:01:34]} 24. Qxf4 {[%clk 0:00:44]}  Rae8 {[%clk 0:00:58]} 25. f3 {[%clk 0:00:32]}  Be2 {[%clk 0:00:51]} 26. Bxe2 {[%clk 0:00:23]}  Rxe2 {[%clk 0:00:51]} 27. Qh4+ {[%clk 0:00:24]}  Kg8 {[%clk 0:00:49]} 28. Qc4+ {[%clk 0:00:25]}  Kh7 {[%clk 0:00:40]} 29. Qxe2 {[%clk 0:00:25]}  Rd8 {[%clk 0:00:40]} 30. Qe7 {[%clk 0:00:25]}  Rd2 {[%clk 0:00:39]} 31. b4 {[%clk 0:00:21]}  Rxa2 {[%clk 0:00:37]} 32. Qxc7 {[%clk 0:00:21]}  b6 {[%clk 0:00:33]} 33. cxb6 {[%clk 0:00:20]}  axb6 {[%clk 0:00:32]} 34. Qxb6 {[%clk 0:00:21]}  Ra1+ {[%clk 0:00:32]} 35. Kh2 {[%clk 0:00:21]}  f4 {[%clk 0:00:32]} 36. Qd4 {[%clk 0:00:20]}  Ra2 {[%clk 0:00:28]} 37. Qxf4 {[%clk 0:00:20]}  g5 {[%clk 0:00:29]} 38. Qe4+ {[%clk 0:00:19]}  Kh6 {[%clk 0:00:28]} 39. Qe6+ {[%clk 0:00:19]} 1-0


[Site "https://www.chess.com"]

[Event "Titled Tuesday Blitz March 08 Early 2022"]
[White "Pinheiro, Iung Alicio de O."]
[Black "Muradov, Soltan"]
[WhiteFideId "2104350"]
[BlackFideId "14002108"]
[WhiteElo "2569"]
[BlackElo "1854"]
[Result "0-1"]
[Round "03"]
[TimeControl "180+1"]
[Date "2022.03.09"]
[WhiteClock "0:00:15"]
[BlackClock "0:00:17"]

1. c4 {[%clk 0:02:59]}  e5 {[%clk 0:02:58]} 2. g3 {[%clk 0:02:59]}  c6 {[%clk 0:02:57]} 3. d4 {[%clk 0:02:58]}  d6 {[%clk 0:02:56]} 4. Bg2 {[%clk 0:02:55]}  Nf6 {[%clk 0:02:53]} 5. Nc3 {[%clk 0:02:54]}  Be7 {[%clk 0:02:52]} 6. e3 {[%clk 0:02:53]}  O-O {[%clk 0:02:52]} 7. Nge2 {[%clk 0:02:53]}  Be6 {[%clk 0:02:27]} 8. b3 {[%clk 0:02:51]}  Ne8 {[%clk 0:02:20]} 9. O-O {[%clk 0:02:39]}  f5 {[%clk 0:02:12]} 10. d5 {[%clk 0:02:38]}  cxd5 {[%clk 0:01:58]} 11. Nxd5 {[%clk 0:02:32]}  Nc6 {[%clk 0:01:53]} 12. Nec3 {[%clk 0:02:21]}  Nf6 {[%clk 0:01:34]} 13. Nxe7+ {[%clk 0:02:09]}  Qxe7 {[%clk 0:01:33]} 14. Ba3 {[%clk 0:02:09]}  Rad8 {[%clk 0:01:30]} 15. Nb5 {[%clk 0:02:08]}  Ne8 {[%clk 0:01:29]} 16. Qh5 {[%clk 0:02:00]}  a6 {[%clk 0:00:46]} 17. Nc3 {[%clk 0:01:58]}  Qf7 {[%clk 0:00:47]} 18. Qxf7+ {[%clk 0:01:36]}  Rxf7 {[%clk 0:00:46]} 19. Rfd1 {[%clk 0:01:37]}  e4 {[%clk 0:00:47]} 20. f4 {[%clk 0:01:31]}  Rfd7 {[%clk 0:00:44]} 21. Bf1 {[%clk 0:01:27]}  Nf6 {[%clk 0:00:41]} 22. h3 {[%clk 0:01:25]}  g6 {[%clk 0:00:23]} 23. Rd2 {[%clk 0:01:25]}  d5 {[%clk 0:00:22]} 24. cxd5 {[%clk 0:01:07]}  Nxd5 {[%clk 0:00:22]} 25. Bc4 {[%clk 0:01:01]}  Nc7 {[%clk 0:00:23]} 26. Rxd7 {[%clk 0:00:54]}  Rxd7 {[%clk 0:00:22]} 27. Be2 {[%clk 0:00:51]}  b5 {[%clk 0:00:19]} 28. Rd1 {[%clk 0:00:48]}  b4 {[%clk 0:00:19]} 29. Rxd7 {[%clk 0:00:48]}  Bxd7 {[%clk 0:00:20]} 30. Bc4+ {[%clk 0:00:44]}  Be6 {[%clk 0:00:17]} 31. Be2 {[%clk 0:00:14]}  bxa3 {[%clk 0:00:16]} 32. Nb1 {[%clk 0:00:15]}  Nb4 {[%clk 0:00:16]} 33. Nxa3 {[%clk 0:00:15]}  Nxa2 {[%clk 0:00:16]} 34. Bc4 {[%clk 0:00:13]}  Bxc4 {[%clk 0:00:16]} 35. Nxc4 {[%clk 0:00:14]}  Nc1 {[%clk 0:00:12]} 36. b4 {[%clk 0:00:14]}  Nd3 {[%clk 0:00:13]} 37. Kf1 {[%clk 0:00:09]}  Nxb4 {[%clk 0:00:13]} 38. Ke2 {[%clk 0:00:10]}  Kf7 {[%clk 0:00:13]} 39. g4 {[%clk 0:00:10]}  Ke6 {[%clk 0:00:13]} 40. Kd2 {[%clk 0:00:10]}  Ncd5 {[%clk 0:00:12]} 41. Na5 {[%clk 0:00:09]}  fxg4 {[%clk 0:00:10]} 42. hxg4 {[%clk 0:00:09]}  h5 {[%clk 0:00:11]} 43. gxh5 {[%clk 0:00:08]}  gxh5 {[%clk 0:00:12]} 44. Ke2 {[%clk 0:00:09]}  Kf5 {[%clk 0:00:11]} 45. Kf2 {[%clk 0:00:09]}  h4 {[%clk 0:00:12]} 46. Nc4 {[%clk 0:00:09]}  h3 {[%clk 0:00:10]} 47. Nd6+ {[%clk 0:00:10]}  Kg4 {[%clk 0:00:10]} 48. Nxe4 {[%clk 0:00:10]}  Nd3+ {[%clk 0:00:08]} 49. Kg1 {[%clk 0:00:07]}  Nxe3 {[%clk 0:00:08]} 50. Kh2 {[%clk 0:00:03]}  Nxf4 {[%clk 0:00:08]} 51. Nc5 {[%clk 0:00:02]}  a5 {[%clk 0:00:08]} 52. Na4 {[%clk 0:00:02]}  Nc4 {[%clk 0:00:07]} 53. Nc5 {[%clk 0:00:02]}  Kf3 {[%clk 0:00:07]} 54. Nb3 {[%clk 0:00:01]}  a4 {[%clk 0:00:07]} 55. Nd4+ {[%clk 0:00:02]}  Ke3 {[%clk 0:00:06]} 56. Nc2+ {[%clk 0:00:03]}  Kd2 {[%clk 0:00:06]} 57. Nb4 {[%clk 0:00:03]}  a3 {[%clk 0:00:05]} 58. Na2 {[%clk 0:00:02]}  Kc2 {[%clk 0:00:06]} 59. Kh1 {[%clk 0:00:03]}  Kb3 {[%clk 0:00:06]} 60. Nc1+ {[%clk 0:00:03]}  Kb2 {[%clk 0:00:06]} 61. Na2 {[%clk 0:00:02]}  Kxa2 {[%clk 0:00:07]} 62. Kh2 {[%clk 0:00:02]}  Kb2 {[%clk 0:00:07]} 63. Kg3 {[%clk 0:00:03]}  h2 {[%clk 0:00:07]} 64. Kxh2 {[%clk 0:00:04]}  a2 {[%clk 0:00:07]} 65. Kg3 {[%clk 0:00:05]}  Nd3 {[%clk 0:00:08]} 66. Kg4 {[%clk 0:00:06]}  a1=Q {[%clk 0:00:09]} 67. Kf5 {[%clk 0:00:07]}  Qe1 {[%clk 0:00:10]} 68. Kf6 {[%clk 0:00:07]}  Kc3 {[%clk 0:00:11]} 69. Kf7 {[%clk 0:00:08]}  Kd4 {[%clk 0:00:12]} 70. Kf6 {[%clk 0:00:08]}  Qe4 {[%clk 0:00:13]} 71. Kf7 {[%clk 0:00:09]}  Ncb2 {[%clk 0:00:13]} 72. Kf8 {[%clk 0:00:10]}  Nc1 {[%clk 0:00:14]} 73. Kf7 {[%clk 0:00:11]}  Nb3 {[%clk 0:00:14]} 74. Kf8 {[%clk 0:00:12]}  Na1 {[%clk 0:00:15]} 75. Kf7 {[%clk 0:00:13]}  Qd5+ {[%clk 0:00:16]} 76. Kf8 {[%clk 0:00:14]}  Qb7 {[%clk 0:00:16]} 77. Ke8 {[%clk 0:00:14]}  Ke5 {[%clk 0:00:17]} 78. Kd8 {[%clk 0:00:15]}  Kd6 {[%clk 0:00:17]} 79. Ke8 {[%clk 0:00:15]}  Qe7# {[%clk 0:00:17]} 0-1


[Site "https://www.chess.com"]